Workbook

Sheet Sheet1
AE2: Air Properties Table 5
A3: Tfi | B3: 320 | C3: C | E3: Tsi | F3: 314.5219001 | G3: C | J3: Air Properties Table 1 | O3: Air Properties Table 2 | T3: Air Properties Table 3 | Z3: Steel Properties Table 4 | AD3: Match | AE3: T (K) | AF3: Cp (J/Kg*K)
A4: Tfo (guess) | B4: 314.9760758 | C4: C | E4: Tso | F4: 313.4182042 | G4: C | I4: Match | J4: T (R) | K4: h (btu/lbm) | N4: Match | O4: T (°F) | P4: mu (lbf*s/ft^2) | Q4: nu (ft^2/s) | S4: Match | T4: T (K) | U4: alpha (m^2/s) | V4: K (W/mK) | W4: Pr | Y4: Match | Z4: T (K) | AA4: K (W/m*K) | AB4: Cp (J/Kg*K) | AD4: 1 | AE4: 250 | AF4: 1003
A5: Tinf | B5: 90 | C5: °F | I5: 1 | J5: 540 | K5: 129.06 | N5: 1 | O5: -40 | P5: 3.29 | Q5: 1.12 | S5: 1 | T5: 100 | U5: 2.54 | V5: 9.34 | W5: 0.786 | Y5: 1 | Z5: 100 | AA5: 9.2 | AB5: 272 | AD5: 2 | AE5: 300 | AF5: 1005
A6: Pavg | B6: 80 | C6: psi | E6: Mu | F6: 28.97 | G6: kg/kmol | I6: 2 | J6: 560 | K6: 133.86 | N6: 2 | O6: -20 | P6: 3.34 | Q6: 1.19 | S6: 2 | T6: 150 | U6: 5.84 | V6: 13.8 | W6: 0.758 | Y6: 2 | Z6: 200 | AA6: 12.6 | AB6: 402 | AD6: 3 | AE6: 350 | AF6: 1008
A7: Di | B7: =0.402/12 -> 0.0335 | C7: ft | E7: Ru | F7: 8314 | G7: J/kmol*K | I7: 3 | J7: 580 | K7: 138.66 | N7: 3 | O7: 0 | P7: 3.38 | Q7: 1.26 | S7: 3 | T7: 200 | U7: 10.3 | V7: 18.1 | W7: 0.737 | Y7: 3 | Z7: 300 | AA7: 14.9 | AB7: 477 | AD7: 4 | AE7: 400 | AF7: 1013
A8: Do | B8: =0.5/12 -> 0.04166666667 | C8: ft | I8: 4 | J8: 600 | K8: 143.47 | N8: 4 | O8: 10 | P8: 3.44 | Q8: 1.31 | S8: 4 | T8: 250 | U8: 15.9 | V8: 22.3 | W8: 0.72 | Y8: 4 | Z8: 400 | AA8: 16.6 | AB8: 515 | AD8: 5 | AE8: 450 | AF8: 1020
A9: L | B9: 1.5 | C9: ft | I9: 5 | J9: 620 | K9: 148.28 | N9: 5 | O9: 20 | P9: 3.5 | Q9: 1.36 | S9: 5 | T9: 300 | U9: 22.5 | V9: 26.3 | W9: 0.707 | Y9: 5 | Z9: 600 | AA9: 19.8 | AB9: 557 | AD9: 6 | AE9: 500 | AF9: 1029
A10: Mdot | B10: 0.135 | C10: lbm/s | I10: 6 | J10: 640 | K10: 153.09 | N10: 6 | O10: 30 | P10: 3.58 | Q10: 1.42 | S10: 6 | T10: 350 | U10: 29.9 | V10: 30 | W10: 0.7 | Y10: 6 | Z10: 800 | AA10: 22.6 | AB10: 582 | AD10: 7 | AE10: 550 | AF10: 1040
A11: Wind Velocity | B11: 10 | C11: mph | I11: 7 | J11: 660 | K11: 157.92 | N11: 7 | O11: 40 | P11: 3.6 | Q11: 1.46 | S11: 7 | T11: 400 | U11: 38.3 | V11: 33.8 | W11: 0.69 | AD11: 8 | AE11: 600 | AF11: 1051
A12: Max Error | B12: 1 | C12: W | I12: 8 | J12: 680 | K12: 162.73 | N12: 8 | O12: 50 | P12: 3.68 | Q12: 1.52 | S12: 8 | T12: 450 | U12: 47.2 | V12: 37.3 | W12: 0.686 | Z12: Value | AA12: Low | AB12: High | AD12: 9 | AE12: 650 | AF12: 1063
E13: Tf_ie | F13: =Tf_i*1.8 -> 1067.67 | G13: R | I13: 9 | J13: 700 | K13: 167.56 | N13: 9 | O13: 60 | P13: 3.75 | Q13: 1.58 | S13: 9 | T13: 500 | U13: 56.7 | V13: 40.7 | W13: 0.684 | Y13: Ts_avg | Z13: =Ts_avg -> 587.1200521 | AA13: =VLOOKUP(Ts_avg,Z4:Z10,1) -> 400 | AB13: =VLOOKUP(MATCH(Ts_avg,$Z$5:$Z$10)+1,$Y$5:$Z$10,2) -> 600 | AD13: 10 | AE13: 700 | AF13: 1075
A14: Tf_i | B14: =Tfi+273.15 -> 593.15 | C14: K | E14: Tf_oe | F14: =Tf_o*1.8 -> 1058.626936 | G14: R | I14: 10 | J14: 720 | K14: 172.39 | N14: 10 | O14: 70 | P14: 3.82 | Q14: 1.64 | S14: 10 | T14: 550 | U14: 66.7 | V14: 43.9 | W14: 0.683 | Y14: K | Z14: =(Z13-AA13)/(AB13-AA13)*(AB14-AA14)+AA14 -> 22.21360156 | AA14: =VLOOKUP(Ts_avg,Z4:AA10,2) -> 16.6 | AB14: =VLOOKUP(MATCH(Ts_avg,$Z$4:$Z$10)+1,Y4:AA10,3) -> 22.6
A15: Tf_o (guess) | B15: =Tfo+273.15 -> 588.1260758 | C15: K | I15: 11 | J15: 740 | K15: 177.23 | N15: 11 | O15: 80 | P15: 3.86 | Q15: 1.69 | S15: 11 | T15: 600 | U15: 76.9 | V15: 46.9 | W15: 0.685 | Y15: Cp | Z15: =(Z13-AA13)/(AB13-AA13)*(AB15-AA15)+AA15 -> 577.6852175 | AA15: =VLOOKUP(Ts_avg,Z4:AB10,3) -> 515 | AB15: =VLOOKUP(MATCH(Ts_avg,$Z$4:$Z$10)+1,Y4:AB10,4) -> 582 | AE15: Value | AF15: Low | AG15: High
A16: Tinf | B16: =CONVERT(B5,"F","K") -> 305.3722222 | C16: K | E16: Tf_avg | F16: =(B14+B15)/2 -> 590.6380379 | G16: K | I16: 12 | J16: 760 | K16: 182.08 | N16: 12 | O16: 90 | P16: 3.9 | Q16: 1.74 | S16: 12 | T16: 650 | U16: 87.3 | V16: 49.7 | W16: 0.69 | AD16: Tf_avg | AE16: =Tf_avg -> 590.6380379 | AF16: =VLOOKUP(Tf_avg,AE4:AE13,1) -> 550 | AG16: =VLOOKUP(MATCH(Tf_avg,$AE$4:$AE$13)+1,$AD$4:$AE$13,2) -> 600
A17: Pavg | B17: =B6*6894.75729 -> 551580.5832 | C17: Pa | F17: =CONVERT(Tf_avg,"K","F") -> 603.4784682 | G17: °F | I17: 13 | J17: 780 | K17: 186.94 | N17: 13 | O17: 100 | P17: 3.94 | Q17: 1.79 | AD17: Cp | AE17: =(AE16-AF16)/(AG16-AF16)*(AG17-AF17)+AF17 -> 1048.940368 | AF17: =VLOOKUP(Tf_avg,AE4:AF13,2) -> 1040 | AG17: =VLOOKUP(MATCH(Tf_avg,$AE$4:$AE$13)+1,AD4:AF13,3) -> 1051
A18: Di | B18: =CONVERT(B7,"ft","m") -> 0.0102108 | C18: m | I18: 14 | J18: 800 | K18: 191.69 | N18: 14 | O18: 120 | P18: 4.02 | Q18: 1.89 | T18: Value | U18: Low | V18: High
A19: Do | B19: =CONVERT(B8,"ft","m") -> 0.0127 | C19: m | E19: Ts_i | F19: =CONVERT(Tsi,"C","K") -> 587.6719001 | G19: K | I19: 15 | J19: 820 | K19: 196.69 | N19: 15 | O19: 140 | P19: 4.13 | Q19: 2.01 | S19: Tf_avg | T19: =Tf_avg -> 590.6380379 | U19: =VLOOKUP(Tf_avg,T5:T16,1) -> 550 | V19: =VLOOKUP(MATCH(Tf_avg,$T$5:$T$16)+1,$S$5:$T$16,2) -> 600
A20: L | B20: =CONVERT(B9,"ft","m") -> 0.4572 | C20: m | E20: Ts_o | F20: =CONVERT(Tso,"C","K") -> 586.5682042 | G20: K | I20: 16 | J20: 840 | K20: 201.56 | N20: 16 | O20: 160 | P20: 4.22 | Q20: 2.12 | S20: alpha | T20: =((T19-U19)/(V19-U19)*(V20-U20)+U20)*10^-6 -> 7.499015973e-05 | U20: =VLOOKUP(Tf_avg,T5:U16,2) -> 66.7 | V20: =VLOOKUP(MATCH(Tf_avg,$T$5:$T$16)+1,S5:U16,3) -> 76.9
A21: Mdot | B21: =CONVERT(B10,"lbm","kg") -> 0.06123496995 | C21: kg/s | E21: Ts_avge | F21: =(Ts_i+Ts_o)/2 -> 587.1200521 | G21: K | I21: 17 | J21: 860 | K21: 206.46 | N21: 17 | O21: 180 | P21: 4.34 | Q21: 2.25 | S21: K | T21: =((T19-U19)/(V19-U19)*(V21-U21)+U21)*10^-3 -> 0.04861401239 | U21: =VLOOKUP(Tf_avg,T5:V28,3) -> 43.9 | V21: =VLOOKUP(MATCH(Tf_avg,$O$5:$O$28)+1,S5:V28,4) -> 49.7
A22: Wind Velocity | B22: =B11*0.44704 -> 4.4704 | C22: m/s | I22: 18 | J22: 880 | K22: 211.35 | N22: 18 | O22: 200 | P22: 4.49 | Q22: 2.4 | S22: Pr | T22: =(T19-U19)/(V19-U19)*(V22-U22)+U22 -> 0.6846255215 | U22: =VLOOKUP(Tf_avg,T5:W16,4) -> 0.683 | V22: =VLOOKUP(MATCH(Tf_avg,$T$5:$T$16)+1,S5:W16,5) -> 0.685
E23: Tf_film | F23: =(F20+B16)/2 -> 445.9702132 | G23: K | I23: 19 | J23: 900 | K23: 216.26 | N23: 19 | O23: 300 | P23: 4.97 | Q23: 3.06
A24: h1 | B24: =h1e*2326 -> 599831.9852 | C24: J/kg | E24: Tf_filme | F24: =CONVERT(F23,"K","F") -> 343.0763838 | G24: °F | I24: 20 | J24: 920 | K24: 221.18 | N24: 20 | O24: 400 | P24: 5.24 | Q24: 3.65 | S24: Tf_avg | T24: =Tf_film -> 445.9702132 | U24: =VLOOKUP(Tf_film,T5:T16,1) -> 400 | V24: =VLOOKUP(MATCH(Tf_film,$T$5:$T$16)+1,$S$5:$T$16,2) -> 450
A25: h2 | B25: =h2e*2326 -> 594562.9266 | C25: J/kg | I25: 21 | J25: 940 | K25: 226.11 | N25: 21 | O25: 500 | P25: 5.8 | Q25: 4.51 | S25: alpha | T25: =((T24-U24)/(V24-U24)*(V25-U25)+U25)*10^-6 -> 4.648269795e-05 | U25: =VLOOKUP(Tf_film,T5:U16,2) -> 38.3 | V25: =VLOOKUP(MATCH(Tf_film,$T$5:$T$16)+1,S5:U16,3) -> 47.2
A26: Qtrans | B26: =B21*(B24-B25) -> 322.6506443 | C26: W | I26: 22 | J26: 960 | K26: 231.06 | N26: 22 | O26: 750 | P26: 6.81 | Q26: 6.68 | S26: K | T26: =((T24-U24)/(V24-U24)*(V26-U26)+U26)*10^-3 -> 0.03701791493 | U26: =VLOOKUP(Tf_film,T5:V16,3) -> 33.8 | V26: =VLOOKUP(MATCH(Tf_film,$T$5:$T$16)+1,S5:V16,4) -> 37.3
I27: 23 | J27: 980 | K27: 236.02 | N27: 23 | O27: 1000 | P27: 7.85 | Q27: 9.3 | S27: Pr | T27: =(T24-U24)/(V24-U24)*(V27-U27)+U27 -> 0.6863223829 | U27: =VLOOKUP(Tf_film,T5:W16,4) -> 0.69 | V27: =VLOOKUP(MATCH(Tf_film,$T$5:$T$16)+1,S5:W16,5) -> 0.686
A28: rho_avg | B28: =Pavg*Mu/(Tf_avg*Ru) -> 3.254063564 | C28: kg/m^3 | I28: 24 | J28: 1000 | K28: 240.98 | N28: 24 | O28: 1500 | P28: 9.5 | Q28: 15.1
A29: Kair_i | B29: =rho_avg*AE17*T20 -> 0.2559653095 | C29: W/mK | I29: 25 | J29: 1040 | K29: 250.95
A30: mu_i | B30: =O32*47.88026 -> 2.977219949e-05 | C30: Ns/m^2 | I30: 26 | J30: 1080 | K30: 260.97 | O30: Value | P30: Low | Q30: High
A31: Pr_i | B31: =T22 -> 0.6846255215 | I31: 27 | J31: 1120 | K31: 271.03 | N31: Tf_avge | O31: =Tf_avge -> 603.4784682 | P31: =VLOOKUP(Tf_avge,O5:O28,1) -> 500 | Q31: =VLOOKUP(MATCH(Tf_avge,$O$5:$O$28)+1,$N$5:$O$28,2) -> 750
A32: Re_Di | B32: =4*Mdot/(PI()*Di*mu_i) -> 256471.3972 | I32: 28 | J32: 1160 | K32: 281.14 | N32: mu | O32: =((O31-P31)/(Q31-P31)*(Q32-P32)+P32)*10^-7 -> 6.218053011e-07 | P32: =VLOOKUP(Tf_avge,O5:P28,2) -> 5.8 | Q32: =VLOOKUP(MATCH(Tf_avge,$O$5:$O$28)+1,N5:P28,3) -> 6.81
A33: Nu_Di | B33: =0.023*Re_Di^0.8*Pr_i^0.3 -> 436.1088617 | I33: 29 | J33: 1200 | K33: 291.3 | N33: nu | O33: =((O31-P31)/(Q31-P31)*(Q33-P33)+P33)*10^-4 -> 0.0005408193104 | P33: =VLOOKUP(Tf_avge,O5:Q28,3) -> 4.51 | Q33: =VLOOKUP(MATCH(Tf_avge,$O$5:$O$28)+1,N5:Q28,4) -> 6.68
A34: h_i | B34: =Nu_Di*Kair_i/Di -> 10932.41859 | C34: W/(m^2K)
A35: TLM | B35: =(Tf_i-Tf_o)/LN((Ts_i-Tf_i)/(Ts_i-Tf_o)) -> 2.017616366 | C35: K | J35: Value | K35: Low | L35: High | N35: Tf_filme | O35: =Tf_filme -> 343.0763838 | P35: =VLOOKUP(Tf_filme,O5:O28,1) -> 300 | Q35: =VLOOKUP(MATCH(Tf_filme,$O$5:$O$28)+1,$N$5:$O$28,2) -> 400
A36: Qconv_i | B36: =h_i*PI()*Di*L*TLM -> 323.4973357 | C36: W | I36: Tf_ie | J36: =Tf_ie -> 1067.67 | K36: =VLOOKUP(Tf_ie,J5:J33,1) -> 1040 | L36: =VLOOKUP(MATCH(Tf_ie,$J$5:$J$33)+1,$I$5:$J$33,2) -> 1080 | N36: mu | O36: =((O35-P35)/(Q35-P35)*(Q36-P36)+P36)*10^-7 -> 5.086306236e-07 | P36: =VLOOKUP(Tf_filme,O5:P28,2) -> 4.97 | Q36: =VLOOKUP(MATCH(Tf_filme,$O$5:$O$28)+1,N5:P28,3) -> 5.24
A37: Error_1 | B37: =Qtrans-Qconv_i -> -0.8466914514 | C37: W | I37: h1 | J37: =(J36-K36)/(L36-K36)*(L37-K37)+K37 -> 257.881335 | K37: =VLOOKUP(Tf_ie,J5:K33,2) -> 250.95 | L37: =VLOOKUP(MATCH(Tf_ie,$J$5:$J$33)+1,I5:K33,3) -> 260.97 | N37: nu | O37: =((O35-P35)/(Q35-P35)*(Q37-P37)+P37)*10^-4 -> 0.0003314150664 | P37: =VLOOKUP(Tf_filme,O5:Q28,3) -> 3.06 | Q37: =VLOOKUP(MATCH(Tf_filme,$O$5:$O$28)+1,N5:Q28,4) -> 3.65
A39: Kss | B39: =Z14 -> 22.21360156 | C39: W/mK | I39: Tf_oe | J39: =Tf_oe -> 1058.626936 | K39: =VLOOKUP(Tf_oe,J5:J33,1) -> 1040 | L39: =VLOOKUP(MATCH(Tf_oe,$J$5:$J$33)+1,$I$5:$J$33,2) -> 1080
A40: Qcond | B40: =2*PI()*L*Kss*(Ts_i-Ts_o)/LN(Do/Di) -> 322.8399688 | C40: W | I40: h2 | J40: =(J39-K39)/(L39-K39)*(L40-K40)+K40 -> 255.6160476 | K40: =VLOOKUP(Tf_oe,J5:K33,2) -> 250.95 | L40: =VLOOKUP(MATCH(Tf_oe,$J$5:$J$33)+1,I5:K33,3) -> 260.97
A41: Error_2 | B41: =Qcond-Qconv_i -> -0.6573669335 | C41: W
A43: Kair_o | B43: =T26 -> 0.03701791493 | C43: W/mK
A44: v_air | B44: =O37*0.092903 -> 3.078945392e-05 | C44: m^2/s
A45: Pr_o | B45: =T27 -> 0.6863223829
A46: Re_Do | B46: =Vel*Do/nu_o -> 1843.945662
A47: Nu_Do | B47: =0.3+(0.62*Re_Do^0.5*Pr_o^(1/3))*(1+(Re_Do/282000)^(5/8))^0.8*(1+(0.4/Pr_o)^(2/3))^-0.25 -> 21.58019569
A48: h_o | B48: =Nu_Do*Kair_o/Do -> 62.9018778
A49: Qconv_o | B49: =h_o*PI()*Do*L*(Ts_o-Tinf) -> 322.6506443 | C49: W
A50: Error3 | B50: =B26-B49 -> 9.663381206e-13
